bitfinex/quotes_ETHUSD_20230110
["timestamp","ask_amount","ask_price","bid_price","bid_amount"]
[1673315598898,30.1743823,1325.2,1325.1,0.07365727]
[1673315599047,33.54923752,1325.2,1325.1,0.07365727]
[1673315604330,30.1743823,1325.2,1325.1,0.07365727]
[1673315606294,30.1743823,1325.2,1325.1,0.07121801]
[1673315608188,33.54923752,1325.2,1325.1,0.07121801]
[1673315610304,30.1743823,1325.2,1325.1,0.07121801]
[1673315610865,33.54923752,1325.2,1325.1,0.07121801]
[1673315612333,41.09526752,1325.2,1325.1,0.07121801]
[1673315615804,31.83823752,1325.2,1325.1,0.07121801]
[1673315625385,27.6672823,1325.2,1325.1,0.07121801]
[1673315625598,20.1212523,1325.2,1325.1,0.07121801]
[1673315625790,6.62929969,1325.2,1325.1,0.07121801]
[1673315626156,6.05661848,1325.2,1325.1,0.10621801]
[1673315626327,7.74639656,1325.2,1325.1,0.13321801]
[1673315627179,6.05661848,1325.2,1325.1,0.13321801]
[1673315627517,7.74535027,1325.2,1325.1,0.13321801]
[1673315627909,7.74535027,1325.2,1325.1,2.70421801]
[1673315628226,7.74535027,1325.2,1325.1,2.90421801]
[1673315628418,5.49239243,1325.2,1325.1,2.90421801]
[1673315629308,13.03842243,1325.2,1325.1,2.90421801]
[1673315629463,6.61779191,1325.2,1325.1,3.38227738]
[1673315630142,5.49239243,1325.2,1325.1,3.3783723]
[1673315630901,6.61761899,1325.2,1325.1,3.3783723]
[1673315631193,5.49239243,1325.2,1325.1,3.3783723]
[1673315631409,6.61728757,1325.2,1325.1,3.3783723]
[1673315632521,13.03842243,1325.2,1325.1,3.3783723]
[1673315632861,13.03842243,1325.2,1325.1,2.90031293]
[1673315632862,30.38344027,1325.2,1325.1,2.90031293]
[1673315634339,30.38344027,1325.2,1325.1,1.18931293]
[1673315634552,28.69470848,1325.2,1325.1,1.18931293]
[1673315634877,31.51081587,1325.2,1325.1,1.18931293]
[1673315635263,29.25785803,1325.2,1325.1,1.18931293]
[1673315640435,26.44175064,1325.2,1325.1,1.18931293]
[1673315640759,27.00785064,1325.2,1325.1,1.18931293]
[1673315641475,29.81948781,1325.2,1325.1,1.18931293]
[1673315641802,29.81948622,1325.2,1325.1,1.18931293]
[1673315643149,27.00785064,1325.2,1325.1,1.18931293]
[1673315643342,29.81962719,1325.2,1325.1,1.18931293]
[1673315644273,27.00785064,1325.2,1325.1,1.18931293]
[1673315644483,27.23785064,1325.2,1325.1,1.18931293]
[1673315645146,30.04965172,1325.2,1325.1,1.18931293]
[1673315646511,27.23785064,1325.2,1325.1,1.18931293]
[1673315648563,30.61270586,1325.2,1325.1,1.18931293]
[1673315651103,30.61270586,1325.2,1325.1,1.18545577]
[1673315652681,27.23785064,1325.2,1325.1,1.18545577]
[1673315659907,30.05031473,1325.2,1325.1,1.18545577]
[1673315660827,6.61612473,1325.2,1325.1,1.18545577]
[1673315661040,2.25612046,1325.2,1325.1,1.18545577]
[1673315661253,3.93779595,1325.2,1325.1,2.06651739]
[1673315661422,1.68767549,1325.2,1325.1,2.06651739]
[1673315662574,3.93779595,1325.2,1325.1,1.18545577]
[1673315663246,11.48361586,1325.2,1325.1,1.18545577]
[1673315663463,11.48961586,1325.2,1325.1,1.18545577]
[1673315665689,3.94358586,1325.2,1325.1,1.18545577]
[1673315665983,3.93758586,1325.2,1325.1,1.18545577]
[1673315667739,11.48361586,1325.2,1325.1,1.18545577]
[1673315667948,2.25612046,1325.2,1325.1,1.18545577]
[1673315668168,2.25012046,1325.2,1325.1,1.18545577]
[1673315669692,5.06258455,1325.2,1325.1,1.18545577]
[1673315669849,2.25612046,1325.2,1325.1,1.18545577]
[1673315670059,2.25012046,1325.2,1325.1,1.18545577]
[1673315672416,3.93785431,1325.2,1325.1,1.18545577]
[1673315675577,3.93785431,1325.2,1325.1,1.18263778]
[1673315675889,1.68773385,1325.2,1325.1,1.18263778]
[1673315676670,1.68773385,1325.2,1325.1,16.27583778]
[1673315676889,2.8127607,1325.2,1325.1,25.52549702]
[1673315677317,1.12502685,1325.2,1325.1,27.22749702]
[1673315678001,1.68773385,1325.3,1325.1,30.62297783]
[1673315678002,2.8127607,1325.3,1325.1,30.62297783]
[1673315678302,2.8127607,1325.3,1325.2,19.63606]
[1673315678303,1.12502685,1325.3,1325.2,19.63606]
[1673315678510,1.75373385,1325.4,1325.2,15.41126902]
[1673315678511,2.8127607,1325.4,1325.2,15.41126902]
[1673315678671,2.8127607,1325.4,1325.3,2.824]
[1673315678884,10.3576607,1325.4,1325.3,2.824]
[1673315679171,9.23863385,1325.4,1325.3,3.8596239]
[1673315679333,10.36294888,1325.4,1325.3,3.8596239]
[1673315680401,2.81804888,1325.4,1325.3,3.8596239]
[1673315680722,2.81204888,1325.4,1325.3,3.8596239]
[1673315683000,2.81204888,1325.4,1325.3,11.4050839]
[1673315683209,2.81204888,1325.4,1325.3,3.94667914]
[1673315683402,1.12431503,1325.4,1325.3,3.8596239]
[1673315684297,1.12431503,1325.4,1325.3,11.4050839]
[1673315684447,1.12431503,1325.4,1325.3,11.49213914]
[1673315684873,1.12431503,1325.4,1325.3,3.94667914]
[1673315685078,1.12431503,1325.4,1325.3,3.8596239]
[1673315686376,1.12431503,1325.4,1325.3,11.4050839]
[1673315686586,1.12431503,1325.4,1325.3,11.49213914]
[1673315686927,1.12431503,1325.4,1325.3,3.94667914]
[1673315687144,1.12431503,1325.4,1325.3,3.8596239]
[1673315687336,1.12431503,1325.4,1325.3,11.4050839]
[1673315687543,1.12431503,1325.4,1325.3,3.94667914]
[1673315687722,1.12431503,1325.4,1325.3,3.8596239]
[1673315689450,1.12431503,1325.4,1325.3,9.0706239]
[1673315689662,1.48813224,1325.7,1325.6,2.110211]
[1673315689870,2.81133448,1325.7,1325.6,2.237211]
[1673315690381,1.12360063,1325.7,1325.6,2.237211]
[1673315691411,5.37733448,1325.8,1325.6,2.237211]
[1673315691623,9.11499512,1325.8,1325.6,3.956211]
[1673315692869,3.79766064,1325.7,1325.6,2.245211]
[1673315693188,30.36505495,1325.7,1325.6,2.245211]
[1673315693401,29.2492211,1325.7,1325.6,2.245211]
[1673315693655,32.74678791,1325.7,1325.6,2.245211]
[1673315693818,35.56947884,1325.7,1325.6,2.245211]
[1673315694044,35.01535838,1325.7,1325.6,2.245211]
[1673315694275,35.24535838,1325.7,1325.6,2.245211]
[1673315694613,35.43289429,1325.7,1325.6,2.245211]
[1673315695289,38.80774951,1325.7,1325.6,2.245211]
[1673315701166,35.30948752,1325.7,1325.6,2.245211]
[1673315710464,31.9346323,1325.7,1325.6,2.245211]
[1673315710640,35.4346323,1325.7,1325.6,2.245211]
[1673315711274,31.9346323,1325.7,1325.6,2.245211]
[1673315711490,39.37196339,1325.7,1325.6,2.245211]
[1673315713293,39.37196339,1325.7,1325.6,2.24291563]
[1673315715090,51.83896339,1325.7,1325.6,2.24291563]
[1673315715311,0.79169434,1325.5,1325.3,8.1554]
[1673315715618,38.48882064,1325.4,1325.3,8.2514]
[1673315715828,35.68022064,1325.4,1325.3,8.2514]
[1673315715992,35.68022064,1325.4,1325.3,0.096]
[1673315716198,2.5,1325.3,1325.1,0.06063778]
[1673315716407,28.12449,1325.2,1325.1,0.06063778]
[1673315716618,29.25621525,1325.2,1325.1,0.06063778]
[1673315717038,28.13049,1325.2,1325.1,0.06063778]
[1673315717248,30.38214248,1325.2,1325.1,0.06063778]
[1673315717502,30.38180142,1325.2,1325.1,0.06063778]
[1673315718365,29.25566039,1325.2,1325.1,0.06063778]
[1673315718507,29.25558672,1325.2,1325.1,0.06063778]
[1673315720345,4.92909842,1325.2,1325.1,0.06063778]
[1673315720661,11.34369064,1325.2,1325.1,0.06063778]
[1673315720876,20.02115842,1325.2,1325.1,0.06063778]
[1673315721040,21.70955672,1325.2,1325.1,0.06063778]
[1673315721243,20.02115842,1325.2,1325.1,0.06063778]
[1673315724443,27.56718842,1325.2,1325.1,0.06063778]
[1673315727503,29.25558672,1325.2,1325.1,0.06063778]
[1673315728500,30.56718842,1325.2,1325.1,0.06063778]
[1673315728714,39.17531623,1325.2,1325.1,0.06063778]
[1673315728964,2.5,1325.1,1324.9,0.18493335]
[1673315729288,29.25268767,1325.0,1324.9,0.08893335]
[1673315729561,29.25868767,1325.0,1324.9,0.08893335]
[1673315729719,29.82488767,1325.0,1324.9,0.08893335]
[1673315731404,30.95030648,1325.0,1324.9,0.08893335]
[1673315731616,28.69946886,1325.0,1324.9,0.08893335]
[1673315731778,29.82498757,1325.0,1324.9,0.08893335]
[1673315732356,28.13685935,1325.0,1324.9,0.08893335]
[1673315732540,20.58969935,1325.0,1324.9,0.08893335]
[1673315732762,13.04253935,1325.0,1324.9,0.08893335]
[1673315734086,5.49537935,1325.0,1324.9,0.08893335]
[1673315734767,13.04253935,1325.0,1324.9,0.08893335]
[1673315735000,5.49537935,1325.0,1324.9,0.08893335]
[1673315735296,13.04253935,1325.0,1324.9,0.08893335]
[1673315735662,1.13151871,1325.0,1324.9,0.08893335]
[1673315736032,0.066,1325.1,1325.0,1.12369314]
[1673315736340,4.92317935,1325.1,1325.0,1.12369314]
[1673315736552,4.92317935,1325.1,1325.0,2.00932779]
[1673315737356,2.32022822,1325.2,1325.0,17.10364779]
[1673315737357,3.44574693,1325.2,1325.0,17.10364779]
[1673315737579,7.17740757,1325.2,1325.0,9.65248779]
[1673315737806,7.18340757,1325.2,1325.0,2.10532779]
[1673315738139,14.72952757,1325.2,1325.0,2.00932779]
[1673315739035,1.12551871,1325.1,1325.0,2.00932779]
[1673315739235,4.92317935,1325.1,1325.0,1.12369314]
[1673315739448,27.56297935,1325.1,1325.0,1.12369314]
[1673315739678,27.56897935,1325.1,1325.0,1.12369314]
[1673315739908,29.25710757,1325.1,1325.0,1.12369314]
[1673315744388,30.94862648,1325.1,1325.0,1.12369314]
[1673315744629,31.20149826,1325.1,1325.0,1.12369314]
[1673315745053,34.01497142,1325.1,1325.0,1.12369314]
[1673315745228,31.7641338,1325.1,1325.0,1.12369314]
[1673315746308,35.2641338,1325.1,1324.9,6.49e-06]
[1673315746537,15.57872052,1325.0,1324.9,6.49e-06]
[1673315746703,38.22620052,1325.0,1324.9,6.49e-06]
[1673315747486,35.9768138,1325.0,1324.9,6.49e-06]
[1673315748279,38.23518819,1325.0,1324.9,6.49e-06]
[1673315750197,35.42171503,1325.0,1324.9,6.49e-06]
[1673315750845,32.92171503,1325.0,1324.9,6.49e-06]
[1673315755994,35.73518819,1325.0,1324.9,6.49e-06]
[1673315756322,39.23518819,1325.0,1324.9,6.49e-06]
[1673315756644,35.73518819,1325.0,1324.9,6.49e-06]
[1673315756952,48.07917538,1325.0,1324.7,0.09839162]
[1673315757154,9.43056541,1324.8,1324.7,0.09839162]
[1673315757353,41.57076541,1324.8,1324.7,0.09839162]
[1673315757744,39.88394908,1324.8,1324.7,0.09839162]
[1673315757953,41.57068473,1324.8,1324.7,0.09839162]
[1673315758206,39.88394908,1324.8,1324.7,0.09839162]
[1673315758389,41.56976974,1324.8,1324.7,0.09839162]
[1673315758602,43.38394908,1324.8,1324.7,0.09839162]
[1673315759058,45.06975425,1324.8,1324.7,0.09839162]
[1673315759697,41.56975425,1324.8,1324.7,0.09839162]
[1673315761374,41.57928591,1324.8,1324.7,0.09839162]
[1673315763794,39.89348074,1324.8,1324.7,0.09839162]
[1673315764628,46.20484129,1324.8,1324.7,0.09839162]
[1673315765888,44.52205285,1324.8,1324.7,0.09839162]
[1673315766047,46.76826453,1324.8,1324.7,0.09839162]
[1673315766263,46.76860862,1324.8,1324.7,0.09839162]
[1673315767447,44.52205285,1324.8,1324.7,0.09839162]
[1673315767638,46.76798091,1324.8,1324.7,0.09839162]
[1673315769108,44.52205285,1324.8,1324.7,0.09839162]
[1673315769538,46.76796353,1324.8,1324.7,0.09839162]
[1673315772156,46.76796353,1324.8,1324.6,0.1006476]
[1673315772157,59.25719538,1324.8,1324.6,0.1006476]
[1673315772377,8.53926056,1324.7,1324.6,0.1006476]
[1673315772582,33.43704127,1324.7,1324.6,0.1006476]
[1673315773008,30.63044135,1324.7,1324.6,0.1006476]
[1673315773346,32.31437028,1324.7,1324.6,0.1006476]
[1673315774381,30.06919957,1324.7,1324.6,0.1006476]
[1673315774557,32.31437028,1324.7,1324.6,0.1006476]
[1673315774982,30.06919957,1324.7,1324.6,0.1006476]
[1673315775239,31.19167468,1324.7,1324.6,0.1006476]
[1673315778085,29.48667468,1324.7,1324.6,0.1006476]
[1673315778885,28.36419957,1324.7,1324.6,0.1006476]
[1673315779093,29.48743962,1324.7,1324.6,0.1006476]
[1673315780781,28.36419957,1324.7,1324.6,0.1006476]
[1673315783400,30.60937028,1324.7,1324.6,0.1006476]
[1673315784248,28.92544135,1324.7,1324.6,0.1006476]
[1673315788971,7.7364419,1324.7,1324.6,0.1006476]
[1673315789182,6.61639321,1324.7,1324.6,0.1006476]
[1673315789458,13.04014119,1324.7,1324.6,0.1006476]
[1673315789962,4.92904688,1324.7,1324.6,15.1995276]
[1673315790178,3.79966064,1324.7,1324.6,28.36772036]
[1673315790354,3.79766064,1324.7,1324.6,20.73628036]
[1673315790561,3.79766064,1324.7,1324.6,2.23640036]
[1673315790780,3.79766064,1324.7,1324.6,0.1006476]
[1673315791227,3.79766064,1324.7,1324.6,7.6500876]
[1673315791387,3.79766064,1324.7,1324.6,7.7460876]
[1673315791755,4.17899679,1324.8,1324.6,11.1680876]
[1673315791928,1.3,1324.8,1324.7,29.54861]
[1673315792134,1.19138624,1325.0,1324.7,31.9181982]
[1673315792373,6.61065743,1325.0,1324.9,1.711]
[1673315792554,6.61665743,1325.0,1324.9,1.711]
[1673315793434,4.92904688,1325.0,1324.9,1.711]
[1673315793617,4.92304688,1325.0,1324.9,1.711]
[1673315793812,4.92304688,1325.0,1324.9,3.572458]
[1673315797110,1.19138624,1325.1,1324.9,27.926648]
[1673315797266,1.19138624,1325.1,1325.0,5.422]
[1673315797267,1.12538624,1325.1,1325.0,5.422]
[1673315797521,2.87899679,1325.2,1325.0,28.15948]
[1673315797726,6.61065743,1325.2,1325.1,1.711]
[1673315797989,6.61665743,1325.2,1325.1,16.8042]
[1673315798170,6.61665743,1325.2,1325.1,1.807]
[1673315798379,6.61665743,1325.2,1325.1,1.711]
[1673315799204,4.92904688,1325.2,1325.1,1.711]
[1673315799450,4.92304688,1325.2,1325.1,4.70256268]
[1673315799856,4.92304688,1325.2,1325.1,24.3508]
[1673315800059,4.92304688,1325.2,1325.1,24.4468]
[1673315800411,4.92304688,1325.2,1325.1,9.3536]
[1673315800994,4.92304688,1325.2,1325.1,1.807]
[1673315801246,4.92304688,1325.2,1325.1,9.2576]
[1673315801458,3.79766064,1325.2,1325.1,11.21474]
[1673315802177,3.44509679,1325.3,1325.1,11.21474]
[1673315802399,3.44509679,1325.3,1325.2,1.711]
[1673315802400,4.92304688,1325.3,1325.2,1.711]
[1673315802578,4.92304688,1325.3,1325.2,24.34909]
[1673315802790,4.92304688,1325.3,1325.2,26.15509]
[1673315802986,4.92304688,1325.3,1325.2,29.711373]
[1673315803196,4.92304688,1325.3,1325.2,22.165343]
[1673315803408,3.79766064,1325.3,1325.2,29.711373]
[1673315804201,1.83505539,1325.4,1325.2,22.165343]
[1673315804414,5.00061603,1325.4,1325.3,1.711]
[1673315804723,5.00661603,1325.4,1325.3,1.711]
[1673315805926,5.00661603,1325.4,1325.2,1.806]
[1673315805927,29.32889658,1325.4,1325.2,1.806]
[1673315806301,3.79766064,1325.3,1325.2,1.71]
[1673315806506,3.79766064,1325.3,1325.1,3.66814]
[1673315806507,27.55942688,1325.3,1325.1,3.66814]
[1673315806666,27.56542688,1325.3,1325.1,3.57214]
[1673315810403,27.56542688,1325.3,1325.2,1.702]
[1673315814241,29.25303743,1325.3,1325.2,1.702]
[1673315814980,27.56542688,1325.3,1325.2,1.702]
[1673315816863,20.01996688,1325.3,1325.2,1.702]
[1673315817703,1.13138624,1325.3,1325.2,3.413]
[1673315817919,1.26895539,1325.4,1325.2,2.076914]
[1673315818248,5.00061603,1325.4,1325.3,1.695]
[1673315818470,5.00661603,1325.4,1325.3,1.695]
[1673315818900,5.00661603,1325.4,1325.3,9.24046]
[1673315819084,5.00661603,1325.4,1325.3,9.33646]
[1673315819857,5.00661603,1325.4,1325.3,1.791]
[1673315820074,5.00661603,1325.4,1325.3,1.695]
[1673315825282,14.23911658,1325.4,1325.3,1.695]
[1673315826320,1.20895539,1325.4,1325.3,9.24046]
[1673315826531,0.07756915,1325.4,1325.3,12.9433584]
[1673315826855,0.07756915,1325.4,1325.3,15.4433584]
[1673315827382,0.07756915,1325.4,1325.3,12.9433584]
[1673315827609,0.07756915,1325.4,1325.3,20.4888184]
[1673315828169,1.20295539,1325.4,1325.3,20.4888184]
[1673315828480,1.20295539,1325.4,1325.3,12.9433584]
[1673315829318,0.07756915,1325.4,1325.3,12.9433584]
[1673315829519,1.20295539,1325.4,1325.3,12.9433584]
[1673315830320,1.20295539,1325.4,1325.3,15.4433584]
[1673315830759,1.20295539,1325.4,1325.3,12.9433584]
[1673315831434,2.89056594,1325.4,1325.3,12.9433584]
[1673315832425,2.89056594,1325.4,1325.3,11.2483584]
[1673315832890,2.89056594,1325.4,1325.3,13.2483584]
[1673315833054,2.89056594,1325.4,1325.3,11.2483584]
[1673315833481,1.20295539,1325.4,1325.3,11.2483584]
[1673315833712,0.07756915,1325.4,1325.3,34.02882694]
[1673315833927,0.12756915,1325.4,1325.3,34.02882694]
[1673315834119,0.07756915,1325.4,1325.3,34.02882694]
[1673315835171,0.07756915,1325.4,1325.3,30.5502784]
[1673315835576,0.07756915,1325.4,1325.3,37.02722486]
[1673315835783,0.08415289,1325.5,1325.4,24.63467]
[1673315836053,0.08415289,1325.5,1325.4,41.16909209]
[1673315836261,0.08415289,1325.5,1325.4,41.73519209]
[1673315836782,0.08415289,1325.5,1325.4,36.25756749]
[1673315837786,0.08415289,1325.5,1325.4,39.73779294]
[1673315838048,0.08415289,1325.5,1325.4,36.25756749]
[1673315838360,0.08415289,1325.5,1325.4,13.05679749]
[1673315838520,0.08415289,1325.5,1325.4,29.15267]
[1673315839178,0.08415289,1325.5,1325.4,21.60778]
[1673315839574,0.08415289,1325.5,1325.4,14.06289]
[1673315840259,0.08415289,1325.5,1325.4,21.60778]
[1673315840572,0.08415289,1325.5,1325.4,29.15267]
[1673315840878,0.08415289,1325.5,1325.4,33.06864384]
[1673315841248,0.08415289,1325.5,1325.4,23.81275384]
[1673315841463,0.08415289,1325.5,1325.4,0.096]
[1673315841464,8.75385913,1325.5,1325.4,0.096]
[1673315841703,17.99178968,1325.5,1325.2,18.4848]
[1673315841919,25.54564134,1325.5,1325.2,18.4848]
[1673315842455,7.54546,1325.3,1325.2,18.4848]
[1673315842640,22.64238,1325.3,1325.2,0.096]
[1673315842858,0.006,1325.3,1325.1,1.711]
[1673315843066,27.56504688,1325.4,1325.1,2.90641]
[1673315843684,27.56504688,1325.4,1325.1,1.711]
[1673315843909,0.36028793,1325.3,1325.1,1.711]
[1673315844261,15.45144793,1325.3,1325.0,20.7132]
[1673315844413,23.00302793,1325.3,1325.0,20.7132]
[1673315844624,26.80068857,1325.3,1325.0,23.12203307]
[1673315844835,2.0,1325.2,1325.0,19.0022]
[1673315845075,7.5466,1325.1,1325.0,10.5661]
[1673315845288,7.5526,1325.1,1325.0,0.096]
[1673315845530,15.0992,1325.1,1324.9,1.695]
[1673315845688,23.212,1325.1,1324.9,1.695]
[1673315845883,23.212,1325.1,1324.8,8.4808]
[1673315846096,23.212,1325.1,1324.8,10.53417]
[1673315846307,23.212,1325.1,1324.8,0.091]
[1673315846308,3.84766064,1325.0,1324.8,0.091]
[1673315846572,3.84766064,1325.0,1324.7,10.4329]
[1673315846573,0.5663,1324.9,1324.7,10.4329]
[1673315846886,5.48934688,1324.9,1324.7,0.091]
[1673315847048,5.50534688,1324.9,1324.6,18.9183476]
[1673315847254,7.05415969,1324.9,1324.6,18.9183476]
[1673315847744,4.37996064,1324.9,1324.6,10.5335476]
[1673315847896,4.36396064,1324.9,1324.6,10.5335476]
[1673315848727,4.36396064,1324.9,1324.6,18.0829776]
[1673315849376,4.36396064,1324.9,1324.6,33.1818576]
[1673315850937,0.5663,1324.9,1324.6,33.1818576]
[1673315851200,0.5662,1325.0,1324.7,1.698]
[1673315851414,0.5662,1325.0,1324.8,31.8952]
[1673315851566,0.5662,1325.0,1324.8,31.9862]
[1673315852563,0.5662,1325.1,1324.8,31.9862]
[1673315852802,4.36386064,1325.1,1324.8,31.9862]
[1673315853596,4.36386064,1325.1,1324.8,35.53158209]
[1673315853912,4.36386064,1325.1,1324.9,2.0]
[1673315854104,4.36386064,1325.1,1325.0,15.09432]
[1673315854455,0.5662,1325.1,1325.0,22.73248]
[1673315856084,1.69148624,1325.2,1325.0,22.73248]
[1673315856315,5.48914688,1325.2,1325.0,22.73248]
[1673315856510,5.50514688,1325.2,1325.0,22.73248]
[1673315857461,4.37976064,1325.2,1325.0,22.73248]
[1673315857668,0.5661,1325.2,1325.0,25.93155]
[1673315858031,0.5661,1325.2,1325.0,27.62955]
[1673315859285,0.5661,1325.2,1325.0,25.93155]
[1673315859502,0.5661,1325.2,1325.0,22.73248]
[1673315859708,0.5661,1325.2,1325.0,7.63816]
[1673315859901,0.5661,1325.2,1325.0,15.18532]
[1673315860079,4.36376064,1325.2,1325.0,7.63816]
[1673315860290,13.03530688,1325.2,1325.0,0.091]
[1673315860550,32.50856065,1325.2,1324.8,3.0]
[1673315860941,32.50856065,1325.2,1324.8,10.5482]
[1673315861146,32.50856065,1325.2,1324.8,22.7358]
[1673315861147,3.79766064,1325.1,1324.8,22.7358]
[1673315861521,3.79766064,1325.1,1324.8,0.091]
[1673315861522,29.28363854,1325.1,1324.8,0.091]
[1673315861810,29.29963854,1325.1,1324.7,8.9152]
[1673315862017,30.37154555,1325.1,1324.7,16.46381]
[1673315862446,22.82481555,1325.1,1324.7,24.01268]
[1673315862615,3.79766064,1325.0,1324.7,31.56155]
[1673315862838,3.79766064,1325.0,1324.7,24.01268]
[1673315863070,6.29766064,1325.0,1324.7,24.01268]
[1673315863291,6.0844923,1324.9,1324.7,0.091]
[1673315863598,20.59326064,1324.8,1324.6,0.1006476]
[1673315863809,3.79766064,1324.7,1324.6,0.1006476]
[1673315864406,4.86956765,1324.7,1324.6,0.1006476]
[1673315864633,12.41843765,1324.7,1324.6,0.1006476]
[1673315864864,12.43443765,1324.7,1324.6,0.1006476]
[1673315865423,27.53217765,1324.7,1324.6,0.1006476]
[1673315866638,19.98330765,1324.7,1324.6,0.1006476]
[1673315867019,12.43443765,1324.7,1324.6,0.1006476]
[1673315867437,27.53217765,1324.7,1324.6,0.1006476]
[1673315869449,29.22817765,1324.7,1324.6,0.1006476]
[1673315870930,29.22817765,1324.7,1324.6,0.09789168]
[1673315872288,27.53217765,1324.7,1324.6,0.09789168]
[1673315872730,12.43443765,1324.7,1324.6,0.09789168]
[1673315872994,11.36253064,1324.7,1324.6,0.09789168]
[1673315873126,3.81366064,1324.7,1324.6,0.09789168]
[1673315873328,11.34653064,1324.7,1324.6,0.09789168]
[1673315873550,18.91140064,1324.7,1324.6,0.09789168]
[1673315873759,26.46027064,1324.7,1324.6,0.09789168]
[1673315874004,18.91140064,1324.7,1324.6,0.09789168]
[1673315875598,29.28209387,1324.7,1324.6,0.09789168]
[1673315877961,30.97909387,1324.7,1324.6,0.09789168]
[1673315878631,31.54549387,1324.7,1324.6,0.09789168]
[1673315879545,16.44775387,1324.7,1324.6,0.09789168]
[1673315879745,6.07706064,1324.7,1324.6,0.09789168]
[1673315880318,0.016,1324.7,1324.6,0.09789168]
[1673315880485,7.57388166,1324.8,1324.6,0.09789168]
[1673315880851,4.3894923,1324.8,1324.6,0.09789168]
[1673315881060,11.9218023,1324.8,1324.6,0.09789168]
[1673315881392,11.9378023,1324.8,1324.6,0.09789168]
[1673315884686,19.4861123,1324.8,1324.6,0.09789168]
[1673315885683,20.61149854,1324.8,1324.6,0.09789168]
[1673315888037,28.15980854,1324.8,1324.6,0.09789168]
[1673315888384,29.84741909,1324.8,1324.6,0.09789168]
[1673315888707,28.15980854,1324.8,1324.6,0.09789168]
[1673315889426,20.61149854,1324.8,1324.6,0.09789168]
[1673315892408,28.15980854,1324.8,1324.6,0.09789168]
[1673315893933,5.51487854,1324.8,1324.6,0.09789168]
[1673315894383,7.45776452,1324.8,1324.6,0.09789168]
[1673315895820,7.45776452,1324.8,1324.6,7.64728168]
[1673315896026,5.51487854,1324.8,1324.6,7.73828168]
[1673315896873,5.51487854,1324.8,1324.6,15.28772168]
[1673315897865,5.51172835,1324.8,1324.6,15.28772168]
[1673315898177,7.20772835,1324.8,1324.6,15.28772168]
[1673315898557,7.20772835,1324.8,1324.6,22.83716168]
[1673315898767,1.14138624,1324.8,1324.6,29.34700149]
[1673315899026,2.87899679,1324.9,1324.7,3.46035584]
[1673315899378,1.12538624,1324.9,1324.8,22.6449]
[1673315899549,2.81299679,1325.0,1324.8,25.00039]
[1673315900458,1.12538624,1325.0,1324.8,25.00039]
[1673315901231,2.81299679,1325.0,1324.8,25.00039]
[1673315902067,1.12538624,1325.0,1324.8,25.00039]
[1673315904034,3.37919679,1325.1,1324.8,25.00039]
[1673315904274,7.17685743,1325.1,1324.8,25.00039]
[1673315904446,1.12538624,1325.0,1324.8,25.00039]
[1673315904871,1.12738624,1325.0,1324.8,24.99839]
[1673315905100,1.12538624,1325.0,1324.8,25.00039]
[1673315907006,7.24285743,1325.1,1324.8,25.00039]
[1673315907322,7.19285743,1325.1,1324.8,25.00039]
[1673315908988,1.12538624,1325.0,1324.8,17.45209]
[1673315909211,1.12538624,1325.0,1324.8,25.00039]
[1673315911005,1.12538624,1325.0,1324.8,22.7359]
[1673315916752,7.24285743,1325.1,1324.8,22.7359]
[1673315916997,7.19285743,1325.1,1324.8,22.7359]
[1673315919290,5.50524688,1325.1,1324.8,22.7359]
[1673315919538,5.50524688,1325.1,1324.8,25.764353]
[1673315919916,4.93904688,1325.1,1324.8,25.764353]
[1673315920131,4.92304688,1325.1,1324.8,25.764353]
[1673315924019,6.61065743,1325.1,1324.8,25.764353]
[1673315924228,6.62665743,1325.1,1324.8,25.764353]
[1673315926334,1.12538624,1325.0,1324.8,25.764353]
[1673315928287,4.92304688,1325.0,1324.8,0.091]
[1673315928492,4.92304688,1325.0,1324.6,18.57079168]
[1673315928493,8.67311624,1324.9,1324.6,18.57079168]
[1673315928813,8.68911624,1324.9,1324.6,26.11996168]
[1673315928958,1.14138624,1324.9,1324.6,41.21884168]
[1673315929172,1.12538624,1324.9,1324.6,41.21884168]
[1673315929694,15.92015743,1325.0,1324.6,41.21884168]
[1673315929909,8.32265743,1325.0,1324.6,46.51935261]
[1673315930169,1.12538624,1324.9,1324.6,46.51935261]
[1673315932131,1.12538624,1324.9,1324.6,47.6480322]
[1673315932685,1.12538624,1324.9,1324.6,46.51935261]
[1673315934159,1.12538624,1324.9,1324.6,47.6480322]
[1673315936262,2.81299679,1324.9,1324.8,7.5483]
[1673315936469,1.12538624,1324.9,1324.8,7.6393]
[1673315936645,2.87899679,1325.0,1324.8,26.40859816]
[1673315936844,2.81299679,1325.0,1324.8,24.53562867]
[1673315938175,1.12538624,1324.9,1324.8,24.53562867]
[1673315938391,2.81299679,1325.0,1324.8,26.4085761]
[1673315938551,2.81299679,1325.0,1324.8,24.53562867]
[1673315939107,1.12538624,1325.0,1324.9,1.87286496]
[1673315939349,1.12538624,1325.0,1324.9,25.82426994]
[1673315939650,1.12538624,1325.0,1324.9,25.91526994]
[1673315939846,1.12538624,1325.0,1324.9,24.04240498]
[1673315940599,2.81299679,1325.0,1324.9,16.49467498]
[1673315941857,2.81299679,1325.0,1324.9,24.04240498]
[1673315947281,2.81299679,1325.0,1324.9,22.73419]
[1673315948796,1.68761055,1325.0,1324.9,22.73419]
[1673315949187,2.8165613,1325.0,1324.9,22.73419]
[1673315952270,1.12895075,1325.0,1324.9,22.73419]
[1673315953596,2.8165613,1325.0,1324.9,22.73419]
[1673315954698,2.8185613,1325.0,1324.9,22.73219]
[1673315955010,2.8165613,1325.0,1324.9,22.73419]
[1673315959410,1.12895075,1325.0,1324.9,22.73419]
[1673315962274,2.8165613,1325.0,1324.9,22.73419]
[1673315965498,1.68761055,1325.0,1324.9,22.73419]
[1673315966071,1.68761055,1325.0,1324.9,0.091]
[1673315966231,1.68761055,1325.0,1324.8,15.18707]
[1673315966450,1.13000586,1324.9,1324.8,22.7351]
[1673315966767,1.13000586,1324.9,1324.8,27.44733575]
[1673315967197,1.13000586,1324.9,1324.8,25.57433463]
[1673315970035,1.13000586,1324.9,1324.8,27.44736144]
[1673315976866,2.81761641,1324.9,1324.8,27.44736144]
[1673315977444,1.13000586,1324.9,1324.8,27.44736144]
[1673315977604,2.81761641,1324.9,1324.8,27.44736144]
[1673315977819,1.13000586,1324.9,1324.8,27.44736144]
[1673315992679,1.13000586,1324.9,1324.8,24.60892681]
[1673315995396,1.13000586,1324.9,1324.8,25.7376064]
[1673315995610,1.13130472,1325.0,1324.8,27.43062578]
[1673315995784,1.13130472,1325.0,1324.9,1.87302681]
[1673315995994,1.13130472,1325.0,1324.9,24.51621681]
[1673315996238,1.13130472,1325.0,1324.9,24.60721681]